bitfinex/quotes_ETHUSD_20250908
["timestamp","ask_amount","ask_price","bid_price","bid_amount"]
[1757365766176,0.001,4296.2,4296.1,5.62939255]
[1757365766354,0.001,4296.2,4296.1,7.61539255]
[1757365766693,0.001,4296.2,4296.1,8.54179255]
[1757365767637,0.001,4296.2,4296.1,8.63489278]
[1757365768942,0.001,4296.2,4296.1,8.16819278]
[1757365769144,0.001,4296.2,4296.1,12.92017272]
[1757365769145,1.2621,4296.2,4296.1,12.92017272]
[1757365769367,1.2621,4296.2,4296.1,11.26079278]
[1757365770134,1.2621,4296.2,4296.1,7.40679278]
[1757365770341,1.2621,4296.2,4296.1,11.26079278]
[1757365776005,1.2621,4296.2,4296.1,11.37679278]
[1757365777600,0.7625,4296.2,4296.1,11.37679278]
[1757365778708,1.2152,4296.2,4296.1,11.37679278]
[1757365779277,0.7625,4296.2,4296.1,7.52279278]
[1757365779479,0.7625,4296.2,4296.1,11.37679278]
[1757365780974,0.2905,4296.2,4296.1,11.37679278]
[1757365783470,0.001,4296.2,4296.1,11.37679278]
[1757365783678,0.001,4296.2,4296.1,12.63699278]
[1757365788730,0.001,4296.2,4296.1,12.16669278]
[1757365791324,0.001,4296.2,4296.1,13.82607272]
[1757365794197,0.001,4296.2,4296.1,12.16669278]
[1757365796726,0.001,4296.2,4296.1,11.68929278]
[1757365797287,1e-08,4296.4,4296.3,2.3275842]
[1757365797518,1e-08,4296.4,4296.3,9.1805842]
[1757365797718,1e-08,4296.4,4296.3,10.4407842]
[1757365797915,1e-08,4296.4,4296.3,10.6407842]
[1757365798114,1e-08,4296.4,4296.3,10.81723737]
[1757365801324,1e-08,4296.4,4296.3,10.34693737]
[1757365801528,1e-08,4296.4,4296.3,10.80393737]
[1757365802508,1e-08,4296.4,4296.3,10.34693737]
[1757365802710,1e-08,4296.4,4296.3,10.80393737]
[1757365805451,1e-08,4296.4,4296.3,10.34693737]
[1757365806711,1e-08,4296.4,4296.3,10.80393737]
[1757365807306,1e-08,4296.4,4296.3,10.91993737]
[1757365813062,1e-08,4296.4,4296.3,10.46293737]
[1757365814088,1e-08,4296.4,4296.3,16.04493737]
[1757365820143,1e-08,4296.4,4296.3,15.56753737]
[1757365821089,1.23460001,4296.4,4296.3,14.9625842]
[1757365825414,1.23460001,4296.4,4296.3,14.9645842]
[1757365825836,0.74700001,4296.4,4296.3,14.9645842]
[1757365826607,0.30050001,4296.4,4296.3,14.9645842]
[1757365827628,0.74700001,4296.4,4296.3,14.9645842]
[1757365831180,0.74700001,4296.4,4296.3,15.0805842]
[1757365836210,0.30050001,4296.4,4296.3,15.0805842]
[1757365838282,0.76690001,4296.4,4296.3,15.0805842]
[1757365838414,0.30050001,4296.4,4296.3,12.0805842]
[1757365838616,0.30050001,4296.4,4296.3,11.9645842]
[1757365838853,0.78310001,4296.4,4296.3,11.9645842]
[1757365839067,1.24950001,4296.4,4296.3,14.9645842]
[1757365839589,0.76690001,4296.4,4296.3,14.9645842]
[1757365841687,1e-08,4296.4,4296.3,15.7372842]
[1757365841868,1e-08,4296.4,4296.3,16.2090842]
[1757365842178,1e-08,4296.4,4296.3,16.3862004]
[1757365844323,1e-08,4296.4,4296.3,18.04710577]
[1757365844821,1e-08,4296.4,4296.3,16.3862004]
[1757365846892,1e-08,4296.4,4296.3,16.66638313]
[1757365848584,1e-08,4296.4,4296.3,16.78238313]
[1757365851327,1e-08,4296.4,4296.3,16.5022004]
[1757365853388,1e-08,4296.4,4296.3,16.0304004]
[1757365856659,1e-08,4296.4,4296.3,16.5022004]
[1757365859053,1e-08,4296.4,4296.3,16.0304004]
[1757365860188,1e-08,4296.4,4296.3,16.5022004]
[1757365860535,1e-08,4296.4,4296.3,16.0304004]
[1757365861156,1e-08,4296.4,4296.3,16.4765004]
[1757365862749,1e-08,4296.4,4296.3,16.0304004]
[1757365862946,1e-08,4296.4,4296.3,16.4765004]
[1757365866746,1e-08,4296.4,4296.3,16.0304004]
[1757365869802,1e-08,4296.4,4296.3,16.4765004]
[1757365870129,1e-08,4296.4,4296.3,16.31058313]
[1757365871109,1e-08,4296.4,4296.3,16.75668313]
[1757365872232,1e-08,4296.4,4296.3,16.4765004]
[1757365872397,1e-08,4296.4,4296.3,16.0304004]
[1757365872814,1e-08,4296.4,4296.3,15.5624004]
[1757365886918,1e-08,4296.4,4296.3,17.64789444]
[1757365888994,1e-08,4296.4,4296.3,18.58129444]
[1757365889511,0.001,4296.7,4296.6,2.32742168]
[1757365889718,0.4616,4296.7,4296.6,9.18042168]
[1757365890031,0.7774,4296.7,4296.6,9.29642168]
[1757365890178,0.7774,4296.7,4296.6,9.95802168]
[1757365890921,0.7774,4296.7,4296.6,11.74402168]
[1757365892626,0.3168,4296.7,4296.6,11.74402168]
[1757365893959,1e-08,4296.7,4296.6,11.74402168]
[1757365895105,0.026,4296.8,4296.7,5.32736751]
[1757365895502,0.3424,4296.8,4296.7,5.32736751]
[1757365895704,0.3424,4296.8,4296.7,11.80652983]
[1757365908402,0.8071,4296.8,4296.7,13.59252983]
[1757365908557,0.8071,4296.8,4296.7,19.11103]
[1757365908558,1.2632,4296.8,4296.7,19.11103]
[1757365908764,1.2632,4296.8,4296.7,19.11103186]
[1757365909794,1.2632,4296.8,4296.7,17.44552983]
[1757365914797,0.8071,4296.8,4296.7,17.44552983]
[1757365916607,0.3424,4296.8,4296.7,17.44552983]
[1757365918522,0.3424,4296.8,4296.7,17.56152983]
[1757365923117,0.026,4296.8,4296.7,17.56152983]
[1757365926515,0.026,4296.8,4296.7,17.86412983]
[1757365926674,0.026,4296.8,4296.7,18.30452983]
[1757365927389,0.026,4296.8,4296.7,17.86412983]
[1757365929730,0.026,4296.8,4296.7,17.56152983]
[1757365931267,0.026,4296.8,4296.7,17.86412983]
[1757365931409,0.026,4296.8,4296.7,18.80242983]
[1757365934629,0.026,4296.8,4296.7,20.46793186]
[1757365935432,0.026,4296.8,4296.7,19.97003186]
[1757365936267,0.026,4296.8,4296.7,18.80242983]
[1757365937072,0.026,4296.8,4296.7,18.30452983]
[1757365937619,0.026,4296.8,4296.7,17.86412983]
[1757365941191,0.3377,4296.8,4296.7,13.70852983]
[1757365941358,0.3377,4296.8,4296.7,17.56052983]
[1757365941695,1.2562,4296.8,4296.7,17.56052983]
[1757365945622,0.3377,4296.8,4296.7,17.56052983]
[1757365948022,0.026,4296.8,4296.7,17.56052983]
[1757365948256,0.026,4296.8,4296.7,17.86312983]
[1757365955791,0.026,4296.8,4296.7,20.47910674]
[1757365956110,0.026,4296.8,4296.7,18.81472983]
[1757365959163,0.026,4296.8,4296.7,18.32342983]
[1757365963068,0.026,4296.8,4296.7,17.86312983]
[1757365964991,0.026,4296.8,4296.7,18.32342983]
[1757365965465,0.026,4296.8,4296.7,18.81472983]
[1757365968882,0.026,4296.8,4296.7,18.32342983]
[1757365975177,0.026,4296.8,4296.7,17.86312983]
[1757365979050,0.001,4296.9,4296.8,2.32731334]
[1757365979257,0.001,4296.9,4296.8,6.27891334]
[1757365979482,0.001,4296.9,4296.8,6.58811334]
[1757365979682,0.001,4296.9,4296.8,6.78811334]
[1757365980539,0.001,4296.9,4296.8,6.90603715]
[1757365981391,0.4944,4298.1,4297.6,2.32688011]
[1757365981684,0.4944,4298.1,4297.6,11.31356812]
[1757365981842,0.4944,4298.1,4297.6,11.08088011]
[1757365982042,0.4944,4298.1,4297.6,11.37395824]
[1757365983898,0.4944,4298.1,4297.6,11.66815824]
[1757365986693,0.116,4298.5,4297.6,11.66815824]
[1757365986863,0.4944,4298.5,4297.6,12.60585824]
[1757365987064,0.9531,4298.5,4297.6,14.26869205]
[1757365987591,0.4944,4298.5,4297.6,14.26869205]
[1757365987799,0.9531,4298.3,4297.6,13.79529205]
[1757365989261,0.9531,4298.3,4297.6,12.13245824]
[1757365990425,0.025,4298.8,4298.5,2.32636107]
[1757365990426,0.9781,4298.8,4298.5,2.32636107]
[1757365990552,0.3076,4298.6,4298.5,2.32636107]
[1757365990891,0.025,4298.8,4298.7,2.44228469]
[1757365991093,0.025,4298.8,4298.7,9.49328469]
[1757365991684,0.025,4298.8,4298.7,10.19116766]
[1757365995085,0.025,4298.8,4298.7,10.95876766]
[1757365995343,0.025,4298.8,4298.7,10.48536766]
[1757365995651,0.025,4298.8,4298.7,10.19116766]
[1757365996001,0.3326,4298.8,4298.7,10.19116766]
[1757365996318,0.025,4298.8,4298.7,10.19116766]
[1757365996699,0.3326,4298.8,4298.7,10.19116766]
[1757366001599,0.827,4298.8,4298.7,10.19116766]
[1757366001839,1.2857,4298.8,4298.7,10.19116766]
[1757366002349,0.827,4298.8,4298.7,10.19116766]
[1757366002547,0.3326,4298.8,4298.7,10.19116766]
[1757366006155,0.827,4298.8,4298.7,10.19116766]
[1757366006340,1.2857,4298.8,4298.7,10.19116766]
[1757366007471,0.827,4298.8,4298.7,10.19116766]
[1757366008440,0.3326,4298.8,4298.7,10.19116766]
[1757366010894,0.3326,4298.8,4298.7,6.34016766]
[1757366011061,1.2881,4298.8,4298.7,10.19016766]
[1757366011264,0.827,4298.8,4298.7,10.19016766]
[1757366011683,0.3326,4298.8,4298.7,10.19016766]
[1757366011847,0.3336,4298.8,4298.7,10.19016766]
[1757366013788,0.026,4298.8,4298.7,10.93456766]
[1757366013999,0.026,4298.8,4298.7,11.39126766]
[1757366014147,0.026,4298.8,4298.7,10.93526766]
[1757366014600,0.026,4298.8,4298.7,10.47856766]
[1757366020433,0.026,4298.8,4298.7,12.13842108]
[1757366022437,0.026,4298.8,4298.7,11.85002108]
[1757366024870,0.026,4298.8,4298.7,8.00002108]
[1757366025036,0.026,4298.8,4298.7,11.85002108]
[1757366025236,0.026,4298.8,4298.7,10.47856766]
[1757366025431,0.026,4298.8,4298.7,10.93526766]
[1757366035536,0.026,4298.8,4298.7,11.65353372]
[1757366035943,0.026,4298.8,4298.7,11.39126766]
[1757366037792,0.026,4298.8,4298.7,10.47856766]
[1757366038143,0.026,4298.8,4298.7,10.93526766]
[1757366038755,0.026,4298.8,4298.7,10.19016766]
[1757366039586,0.026,4298.8,4298.7,10.47856766]
[1757366040304,0.026,4298.8,4298.7,11.39126766]
[1757366040465,0.026,4298.8,4298.7,11.65353372]
[1757366040900,0.02,4299.9,4299.7,2.32574365]
[1757366041102,0.02,4299.9,4299.7,11.07574365]
[1757366041307,0.02,4299.9,4299.7,11.38854365]
[1757366041485,0.02,4299.9,4299.7,12.47744365]
[1757366041799,0.02,4299.9,4299.7,12.93274365]
[1757366041999,0.02,4299.9,4299.7,14.59155541]
[1757366042163,0.02,4299.9,4299.7,12.93274365]
[1757366045318,0.02,4299.9,4299.7,13.69904711]
[1757366045456,0.02,4299.9,4299.7,12.93274365]
[1757366046020,0.02,4299.9,4299.7,12.47204365]
[1757366046904,0.3311,4299.8,4299.7,7.88204365]
[1757366047116,0.3311,4299.8,4299.7,11.73404365]
[1757366049160,0.025,4299.8,4299.7,11.73404365]
[1757366049399,0.025,4299.8,4299.7,12.04684365]
[1757366049709,0.026,4299.8,4299.7,12.04684365]
[1757366050594,0.026,4299.8,4299.7,12.47504365]
[1757366052017,0.026,4299.8,4299.7,12.04684365]
[1757366052598,0.026,4299.8,4299.7,12.47504365]
[1757366055075,0.026,4299.8,4299.7,12.04684365]
[1757366055651,0.026,4299.8,4299.7,12.50754365]
[1757366055857,0.026,4299.8,4299.7,12.93574365]
[1757366058175,0.001,4300.3,4300.2,2.32547323]
[1757366058382,0.025,4302.8,4301.7,2.32466234]
[1757366058672,0.025,4302.8,4301.7,5.654]
[1757366058876,0.3311,4301.8,4301.7,5.654]
[1757366059221,1.1231,4301.8,4301.7,5.654]
[1757366059413,2.0371,4301.8,4301.7,5.654]
[1757366059529,2.25211104,4301.8,4301.7,5.654]
[1757366060735,1.46011104,4301.8,4301.7,7.97866234]
[1757366063028,0.99911104,4301.8,4301.7,8.17866234]
[1757366063163,0.7841,4301.8,4301.7,8.17866234]
[1757366063563,1.2451,4301.8,4301.7,8.17866234]
[1757366064979,1.2451,4301.8,4301.7,5.854]
[1757366065451,2.0371,4301.8,4301.7,1.985]
[1757366065668,2.0371,4301.8,4301.7,5.655]
[1757366065933,2.4775931,4301.8,4301.7,5.655]
[1757366067811,2.4785931,4301.8,4301.7,5.655]
[1757366069219,2.0381,4301.8,4301.7,5.655]
[1757366069936,4.3627083,4301.8,4301.7,5.655]
[1757366070135,2.0381,4301.8,4301.7,5.655]
[1757366070635,0.908,4301.7,4301.0,1.784]
[1757366070929,0.792,4301.5,4301.2,3.0]
[1757366071130,0.9003,4301.4,4301.3,6.869]
[1757366071433,1.979,4301.4,4301.3,6.869]
[1757366071631,1.979,4301.4,4301.3,7.069]
[1757366071782,4.30382447,4301.4,4301.3,6.869]
[1757366071983,1.979,4301.4,4301.3,6.869]
[1757366072220,2.40937783,4301.4,4301.3,6.869]
[1757366072603,1.979,4301.4,4301.3,6.869]
[1757366073737,0.908,4301.3,4301.0,1.784]
[1757366074034,2.34828802,4301.2,4301.0,3.868]
[1757366074186,1.187,4301.1,4301.0,3.868]
[1757366074386,1.85221155,4301.1,4301.0,3.868]
[1757366075137,1.187,4301.1,4301.0,3.868]
[1757366075434,0.7478,4301.1,4301.0,3.868]
[1757366076791,1.187,4301.1,4301.0,3.868]
[1757366079294,0.7478,4301.1,4301.0,3.868]
[1757366079526,0.2867,4301.1,4301.0,3.868]
[1757366079730,0.48693455,4301.1,4301.0,3.868]
[1757366080645,1.38723455,4301.1,4301.0,3.868]
[1757366080994,0.94803455,4301.1,4301.0,3.868]
[1757366082519,1.38723455,4301.1,4301.0,3.868]
[1757366083415,3.27302118,4301.1,4301.0,3.868]
[1757366083620,3.71222118,4301.1,4301.0,3.868]
[1757366084126,1.38723455,4301.1,4301.0,3.868]
[1757366084758,3.71222118,4301.1,4301.0,3.868]
[1757366085262,1.38723455,4301.1,4301.0,3.868]
[1757366085970,0.94803455,4301.1,4301.0,3.868]
[1757366086257,0.7478,4301.1,4301.0,3.868]
[1757366086412,0.2867,4301.1,4301.0,3.868]
[1757366088033,0.81534554,4301.3,4301.0,3.868]
[1757366089064,0.792,4301.3,4301.0,3.868]
[1757366090461,2.32466627,4301.7,4301.2,0.2959]
[1757366090462,0.792,4301.7,4301.2,0.2959]
[1757366090639,0.02334554,4301.6,4301.2,0.2959]
[1757366090840,0.13024455,4301.5,4301.3,0.446]
[1757366091072,0.13024455,4301.5,4301.0,3.868]
[1757366091073,0.792,4301.1,4301.0,3.868]
[1757366091275,0.116,4301.5,4301.1,3.0]
[1757366091438,0.116,4301.5,4301.1,5.23]
[1757366091642,0.116,4301.5,4301.2,0.446]
[1757366091856,0.116,4301.5,4301.3,3.865]
[1757366092195,0.792,4301.4,4301.3,4.3322]
[1757366092376,0.792,4301.4,4301.3,4.6281]
[1757366092867,0.792,4301.4,4301.3,7.39897852]
[1757366093074,0.792,4301.4,4301.3,10.39897852]
[1757366095057,0.792,4301.4,4301.3,8.0741]
[1757366095233,0.792,4301.4,4301.3,10.39897852]
[1757366098046,0.792,4301.4,4301.3,8.0741]
[1757366098229,0.792,4301.4,4301.3,10.39897852]
[1757366103393,0.818,4301.8,4301.4,3.0]
[1757366103535,0.818,4301.8,4301.7,0.3051]
[1757366103735,0.818,4301.8,4301.7,6.49276234]
[1757366104057,0.818,4301.8,4301.7,7.44456234]
[1757366104448,0.818,4301.8,4301.7,4.6661]
[1757366104658,0.818,4301.8,4301.7,4.1681]
[1757366104892,0.818,4301.8,4301.7,4.6219]
[1757366105734,1.1272,4301.8,4301.7,3.863]
[1757366105995,1.71842,4301.8,4301.0,3.4538]
[1757366106130,0.81534554,4301.7,4301.3,3.0]
[1757366106335,0.026,4301.8,4301.4,7.14062421]
[1757366106581,0.818,4301.8,4301.7,0.3051]
[1757366106768,0.818,4301.8,4301.7,4.1701]
[1757366106968,0.818,4301.8,4301.7,6.49476234]
[1757366107338,1.15054554,4301.8,4301.7,3.865]
[1757366107581,2.21960455,4301.8,4301.2,2.44093164]
[1757366107890,0.116,4301.6,4301.4,3.0]
[1757366108090,0.116,4301.6,4301.5,3.866]
[1757366108440,0.4252,4301.6,4301.5,3.866]
[1757366108639,0.4252,4301.6,4301.5,6.19077042]
[1757366108885,0.4252,4301.6,4301.5,3.866]
[1757366109382,0.4252,4301.6,4301.5,6.19077042]
[1757366109584,0.116,4301.6,4301.5,6.19077042]
[1757366110595,0.116,4301.6,4301.5,9.49587042]
[1757366110939,0.116,4301.6,4301.5,6.866]
[1757366111173,0.4252,4301.6,4301.5,6.866]
[1757366112084,0.4252,4301.6,4301.5,6.865]
[1757366112787,0.4252,4301.6,4301.5,3.0]
[1757366112988,0.4252,4301.6,4301.5,9.18877042]
[1757366114949,0.4252,4301.6,4301.5,6.864]
[1757366116792,1.2172,4301.6,4301.5,6.864]
[1757366116999,1.2172,4301.6,4301.5,3.0]
[1757366117169,1.2172,4301.6,4301.5,6.863]
[1757366119900,0.792,4301.5,4301.2,0.2]
[1757366120142,0.81534554,4301.5,4301.3,3.863]
[1757366120488,1.1012,4301.4,4301.3,3.863]
[1757366120690,1.1012,4301.4,4301.3,9.18787852]
[1757366122546,0.792,4301.4,4301.3,9.18787852]
[1757366123696,0.792,4301.4,4301.3,9.49297852]
[1757366123899,1.1012,4301.4,4301.3,9.18787852]
[1757366124095,0.792,4301.4,4301.3,9.18787852]
[1757366124659,0.908,4301.3,4301.1,1.784]
[1757366124966,0.21589455,4301.2,4301.1,1.784]
[1757366125159,0.908,4301.3,4301.1,1.784]
[1757366125297,0.7741,4301.2,4301.1,1.784]
[1757366125490,0.3092,4301.2,4301.1,1.784]
[1757366125762,0.3092,4301.2,4301.1,5.646]
[1757366126292,0.908,4301.3,4301.1,5.646]
[1757366126496,0.13962455,4301.2,4301.1,5.646]
[1757366127855,0.13962455,4301.2,4301.1,5.645]
[1757366128219,0.13962455,4301.2,4301.1,5.9501]
[1757366130301,1.24082455,4301.2,4301.1,1.784]
[1757366130506,1.26417009,4301.2,4301.1,5.645]
[1757366130653,1.24082455,4301.2,4301.1,5.645]
[1757366131087,1.24082455,4301.2,4301.1,1.784]
[1757366131286,2.17867009,4301.2,4301.1,1.784]
[1757366131491,1.72167009,4301.2,4301.1,1.784]
[1757366131689,0.792,4301.1,4300.8,0.002]
[1757366131850,0.792,4300.9,4300.8,3.864]
[1757366132051,1.9994,4300.9,4300.8,3.864]
[1757366132450,4.32449474,4300.9,4300.8,3.864]
[1757366132870,4.34784028,4300.9,4300.8,0.002]
[1757366137152,3.89084028,4300.9,4300.8,0.002]
[1757366137327,4.55007908,4301.4,4300.8,5.0652]
[1757366137525,0.02334554,4301.4,4300.9,3.8941]
[1757366137740,0.116,4301.2,4300.9,4.21036589]
[1757366138048,0.116,4301.2,4301.1,2.63108663]
[1757366138339,0.001,4301.6,4301.3,2.32485572]
[1757366138643,0.001,4301.6,4301.4,3.868]
[1757366138878,0.001,4301.6,4301.5,2.63087042]
[1757366139023,0.001,4301.6,4301.5,6.52497042]
[1757366139589,0.001,4301.6,4301.5,6.72497042]
[1757366141746,0.001,4301.6,4301.5,7.04123631]
[1757366141887,0.025,4302.8,4301.5,7.04123631]
[1757366141888,1e-08,4301.9,4301.8,5.3246083]
[1757366142091,1e-08,4301.9,4301.8,9.62487419]
[1757366142459,1e-08,4301.9,4301.8,10.82507419]
[1757366142617,1e-08,4301.9,4301.8,11.02507419]
[1757366143898,1e-08,4301.9,4301.8,7.15707419]
[1757366144137,1e-08,4301.9,4301.8,11.02507419]
[1757366144636,1e-08,4301.9,4301.8,10.7088083]
[1757366148246,1e-08,4301.9,4301.8,5.9467083]
[1757366148541,1e-08,4301.9,4301.8,9.8127083]
[1757366149094,1e-08,4301.9,4301.8,10.2526083]
[1757366150336,1e-08,4301.9,4301.8,10.7068083]
[1757366151439,1e-08,4301.9,4301.8,11.02307419]
[1757366158652,0.025,4302.8,4302.7,2.32412206]
[1757366158822,0.025,4302.8,4302.7,11.09012206]
[1757366159021,0.025,4302.8,4302.7,12.29032206]
[1757366159220,0.025,4302.8,4302.7,12.49032206]
[1757366159422,0.025,4302.8,4302.7,12.58328381]
[1757366161918,0.8168,4302.8,4302.7,7.51708381]
[1757366162169,1.2886,4302.8,4302.7,8.26808381]
[1757366162553,1.2886,4302.8,4302.7,11.26808381]
[1757366163138,1.2886,4302.8,4302.7,8.94396175]
[1757366163361,1.2886,4302.8,4302.7,11.26808381]
[1757366163543,1.2886,4302.8,4302.7,8.94396175]
[1757366163757,1.43106,4302.8,4302.7,5.07696175]
[1757366163989,1.43106,4302.8,4302.7,11.26808381]
[1757366164156,1.43106,4302.8,4302.7,11.06808381]
[1757366164873,1.43106,4302.8,4302.7,8.74396175]
[1757366165491,2.22306,4302.8,4302.7,1.784]
[1757366165657,2.22306,4302.8,4302.7,5.652]
[1757366168746,0.025,4302.8,4302.7,5.652]
[1757366168948,0.025,4302.8,4302.7,5.9389]
[1757366169490,0.025,4302.8,4302.7,7.97612206]
[1757366171617,0.025,4302.8,4302.7,5.652]
[1757366171764,0.3191,4302.8,4302.7,5.652]
[1757366172303,0.8168,4302.8,4302.7,5.652]
[1757366172453,1.2886,4302.8,4302.7,5.652]
[1757366173169,0.8168,4302.8,4302.7,5.652]
[1757366173371,0.3191,4302.8,4302.7,5.652]
[1757366173572,0.3191,4302.8,4302.7,7.97612206]
[1757366174373,0.3191,4302.8,4302.7,5.652]
[1757366174904,0.52916,4302.8,4302.7,5.652]
[1757366175055,2.29066,4302.8,4302.7,5.652]
[1757366175566,2.40666,4302.8,4302.7,5.652]
[1757366176899,2.40666,4302.8,4302.7,5.651]
[1757366177975,2.40666,4302.8,4302.1,6.02185278]
[1757366177976,0.792,4302.7,4302.1,6.02185278]
[1757366178173,0.792,4302.4,4302.3,3.0]
[1757366178374,1.0861,4302.4,4302.3,6.866]
[1757366179178,0.026,4302.8,4302.5,2.32420553]
[1757366179359,0.026,4302.8,4302.7,0.2869]
[1757366181354,0.026,4302.8,4302.7,2.61102206]
[1757366183307,0.026,4302.8,4302.7,3.08582206]
[1757366184778,0.026,4302.8,4302.7,3.56802206]
[1757366185112,0.026,4302.8,4302.7,3.08582206]
[1757366186010,0.026,4302.8,4302.7,2.61102206]
[1757366187620,0.026,4302.8,4302.7,0.2869]
[1757366188118,0.026,4302.8,4302.7,2.61102206]
[1757366188622,0.026,4302.8,4302.7,0.2869]
[1757366188925,0.026,4302.8,4302.7,2.61102206]
[1757366189425,0.026,4302.8,4302.7,6.56802206]
[1757366189974,0.026,4302.8,4302.7,6.76802206]
[1757366192624,0.026,4302.8,4302.7,10.10572206]
[1757366192796,0.026,4302.8,4302.7,10.56002206]
[1757366195021,0.026,4302.8,4302.7,10.87628795]
[1757366195389,0.026,4302.8,4302.7,10.56002206]
[1757366196834,1e-08,4302.9,4302.8,5.32406804]
[1757366196998,1e-08,4302.9,4302.8,6.9792715]
[1757366197207,1e-08,4302.9,4302.8,8.1671715]
[1757366197727,1e-08,4302.9,4302.8,8.3671715]
[1757366198702,1e-08,4302.9,4302.8,6.71196804]
[1757366198904,1e-08,4302.9,4302.8,8.3671715]
[1757366199404,1e-08,4302.9,4302.8,6.82796804]
[1757366199839,1e-08,4302.9,4302.8,8.4831715]
[1757366200739,1e-08,4302.9,4302.8,10.69796804]
[1757366201413,1e-08,4302.9,4302.8,9.81496804]
[1757366203244,1e-08,4302.9,4302.8,5.94496804]
[1757366203414,1e-08,4302.9,4302.8,9.51006804]
[1757366204325,1e-08,4302.9,4302.8,9.51206804]
[1757366204326,0.28620001,4302.9,4302.8,9.51206804]
[1757366205526,1e-08,4302.9,4302.8,9.51206804]
[1757366205834,1e-08,4302.9,4302.8,9.81696804]
[1757366206036,1e-08,4302.9,4302.8,10.69996804]
[1757366206650,1e-08,4302.9,4302.8,10.24566804]
[1757366208745,1e-08,4302.9,4302.8,9.81696804]
[1757366209274,1e-08,4302.9,4302.8,10.69996804]
[1757366210134,1e-08,4302.9,4302.8,10.24566804]
[1757366210547,1e-08,4302.9,4302.8,5.64006804]
[1757366210741,1e-08,4302.9,4302.8,9.81496804]
[1757366215189,1e-08,4302.9,4302.8,9.51006804]
[1757366215594,0.28620001,4302.9,4302.8,9.51206804]
[1757366216911,1e-08,4302.9,4302.8,9.81696804]
[1757366217747,1e-08,4302.9,4302.8,10.24566804]
[1757366218195,1e-08,4302.9,4302.8,11.01623393]
[1757366219248,1e-08,4302.9,4302.8,12.67143739]
[1757366220999,1e-08,4302.9,4302.8,12.3551715]
[1757366221856,1e-08,4302.9,4302.8,11.9008715]
[1757366224967,1e-08,4302.9,4302.8,12.3553715]
[1757366228269,1e-08,4302.9,4302.8,10.24566804]
[1757366230380,1e-08,4302.9,4302.8,9.81696804]
[1757366231062,1e-08,4302.9,4302.8,5.64206804]
[1757366231267,1e-08,4302.9,4302.8,9.51006804]
[1757366234320,0.00100001,4302.9,4302.8,9.51006804]
[1757366235654,0.00100001,4302.9,4302.8,11.29306804]
[1757366235815,0.00100001,4302.9,4302.8,11.58916804]
[1757366237099,0.00100001,4302.9,4302.8,12.04366804]
[1757366237305,0.00100001,4302.9,4302.8,12.35993393]
[1757366237500,0.00100001,4302.9,4302.8,11.90543393]
[1757366237670,0.00100001,4302.9,4302.8,12.80123393]
[1757366238611,0.00100001,4302.9,4302.8,12.34673393]
[1757366239021,0.00100001,4302.9,4302.8,11.90543393]
[1757366240208,0.00100001,4302.9,4302.8,12.34673393]
[1757366240404,0.00100001,4302.9,4302.8,17.47843393]
[1757366240586,0.00100001,4302.9,4302.8,18.37423393]
[1757366241688,0.025,4303.8,4303.7,2.32358203]
[1757366241904,0.025,4303.8,4303.7,11.08758203]
[1757366242225,0.025,4303.8,4303.7,12.27948203]
[1757366242450,0.025,4303.8,4303.7,12.91508203]
[1757366243627,0.025,4303.8,4303.7,13.03114525]
[1757366243940,0.025,4303.8,4303.7,13.20471712]
[1757366244244,0.4774,4305.2,4304.7,2.32304225]
[1757366244409,0.933,4304.9,4304.7,7.97204225]
[1757366244739,0.3313,4304.8,4304.7,7.97204225]
[1757366244941,0.3313,4304.8,4304.7,8.66895573]
[1757366246969,1.2443,4304.8,4304.7,8.66895573]
[1757366247298,1.2443,4304.8,4304.7,7.98104225]
[1757366249245,1.2443,4304.8,4304.7,5.658]
[1757366250631,1.2443,4304.8,4304.7,1.783]
[1757366250945,1.2443,4304.8,4304.7,7.98004225]
[1757366252546,1.2443,4304.8,4304.7,5.657]
[1757366253046,1.2443,4304.8,4304.7,8.657]
[1757366253248,1.2453,4304.8,4304.7,8.657]
[1757366253843,1.2453,4304.8,4304.7,8.857]
[1757366254175,1.2453,4304.8,4304.7,8.856]
[1757366255607,1.37183,4304.8,4304.7,8.856]
[1757366256550,1.37183,4304.8,4304.7,4.983]
[1757366256758,1.37183,4304.8,4304.7,8.855]
[1757366257425,0.026,4304.8,4304.7,11.17804225]
[1757366257959,0.3121,4304.8,4304.7,8.855]
[1757366258702,0.7703,4304.8,4304.7,8.855]
[1757366259342,1.2291,4304.8,4304.7,8.855]
[1757366260908,0.7703,4304.8,4304.7,8.855]
[1757366261558,1.2291,4304.8,4304.7,8.855]
[1757366262253,0.7703,4304.8,4304.7,8.855]
[1757366263018,1.2291,4304.8,4304.7,8.855]
[1757366263953,0.7703,4304.8,4304.7,8.855]
[1757366264123,0.026,4304.8,4304.7,8.855]
[1757366264526,0.3121,4304.8,4304.7,8.855]
[1757366264729,0.7703,4304.8,4304.7,4.983]
[1757366264928,1.2291,4304.8,4304.7,8.852]
[1757366265330,1.35401,4304.8,4304.7,8.852]
[1757366266515,1.35401,4304.8,4304.7,5.852]
[1757366269729,0.43701,4304.8,4304.7,5.852]
[1757366269935,0.89521,4304.8,4304.7,5.852]
[1757366270259,1.35401,4304.8,4304.7,5.852]
[1757366272450,0.89521,4304.8,4304.7,5.852]
[1757366272625,0.43701,4304.8,4304.7,5.852]
[1757366276170,2.16935554,4304.8,4304.7,1.983]
[1757366276339,2.16935554,4304.8,4304.7,1.783]